[Event "2nd Namma Bengaluru Open-B 2025"]
[Site "Bengaluru"]
[Date "2025.04.10"]
[Round "2.1"]
[White "Nayak, Biswajit"]
[Black "Dhruv Gupta"]
[Result "1-0"]
[Annotator "NA"]
[ECO "D02"]
[WhiteElo "1979"]
[BlackElo "1690"]
[PlyCount "59"]
[EventDate "2025.04.10"]
[EventType "swiss"]
[EventCountry "IND"]
[SourceTitle "playchess.com"]
[Source "ChessBase"]
[SourceQuality "1"]
[TimeControl "3600+30"]

1. d4 {[%emt 0:00:13]} Nf6 {[%emt 0:00:16]} 2. Nf3 {[%emt 0:00:41]} e6 {[%emt 0:00:15]} 3. Bf4 {[%emt 0:00:22]} c5 {[%emt 0:00:49]} 4. e3 {[%emt 0:00:51]} Nc6 {[%emt 0:01:07]} 5. Nbd2 {[%emt 0:00:46]} d5 {[%emt 0:00:57]} 6. c3 {[%emt 0:00:42]} cxd4 {[%emt 0:02:27]} 7. exd4 {[%emt 0:00:15]} Bd6 {[%emt 0:00:30]} 8. Bg3 {[%emt 0:02:21]} Qc7 {[%emt 0:01:32]} 9. Bd3 {[%emt 0:01:28]} Bd7 {[%emt 0:01:20]} 10. O-O {[%emt 0:00:25]} Ne7 {[%emt 0:05:36]} 11. Ne5 {[%emt 0:02:04]} Ng6 {[%emt 0:00:50]} 12. Re1 {[%emt 0:02:41]} O-O {[%emt 0:01:55]} 13. h4 {[%emt 0:02:11]} h5 {[%emt 0:04:20]} 14. Ndf3 {[%emt 0:04:54]} Ng4 {[%emt 0:05:57]} 15. Bxg6 {[%emt 0:02:55]} fxg6 {[%emt 0:00:19]} 16. Nxg4 {[%emt 0:00:51]} Bxg3 {[%emt 0:00:41]} 17. fxg3 {[%emt 0:00:23]} hxg4 {[%emt 0:13:03]} 18. Ne5 {[%emt 0:00:53]} Rf6 {[%emt 0:00:19]} 19. Qxg4 {[%emt 0:02:36]} Raf8 {[%emt 0:01:44]} 20. Nxg6 {[%emt 0:03:04]} Re8 {[%emt 0:09:13]} 21. Rf1 {[%emt 0:05:02]} Rf5 {[%emt 0:00:38]} 22. Kh2 {[%emt 0:07:00]} Qc4 {[%emt 0:01:38]} 23. Rf4 {[%emt 0:04:10]} Qb5 {[%emt 0:03:52]} 24. b3 {[%emt 0:02:47]} Qc6 {[%emt 0:06:15]} 25. Rc1 {[%emt 0:03:34]} Qd6 {[%emt 0:00:58]} 26. Rcf1 {[%emt 0:03:33]} Rc8 {[%emt 0:01:36]} 27. R1f3 {[%emt 0:04:45]} Be8 {[%emt 0:01:49]} 28. Rxf5 {[%emt 0:01:51]} exf5 {[%emt 0:00:01]} 29. Qxf5 {[%emt 0:00:01]} Bd7 {[%emt 0:00:06]} 30. Qh5 {[%emt 0:00:26]} 1-0

[Event "2nd Namma Bengaluru Open-B 2025"]
[Site "Bengaluru"]
[Date "2025.04.10"]
[Round "2.2"]
[White "Ananya Manisundaram"]
[Black "Prashanth J Naik"]
[Result "0-1"]
[Annotator "NA"]
[ECO "B01"]
[WhiteElo "1682"]
[BlackElo "1979"]
[PlyCount "62"]
[EventDate "2025.04.10"]
[EventType "swiss"]
[EventCountry "IND"]
[SourceTitle "playchess.com"]
[Source "ChessBase"]
[SourceQuality "1"]
[TimeControl "3600+30"]

1. e4 {[%emt 0:00:07]} d5 {[%emt 0:00:20]} 2. exd5 {[%emt 0:00:07]} Nf6 {[%emt 0:00:03]} 3. d4 {[%emt 0:00:08]} Bg4 {[%emt 0:00:56]} 4. Nf3 {[%emt 0:01:17]} Qxd5 {[%emt 0:00:20]} 5. Be2 {[%emt 0:00:21]} Nc6 {[%emt 0:01:44]} 6. c4 {[%emt 0:03:12]} Qh5 {[%emt 0:01:54]} 7. h3 {[%emt 0:05:02]} O-O-O {[%emt 0:01:20]} 8. O-O {[%emt 0:05:32]} Nxd4 {[%emt 0:57:53]} 9. Nxd4 {[%emt 0:05:36]} Bxe2 {[%emt 0:00:00]} 10. Qxe2 {[%emt 0:00:48]} Rxd4 {[%emt 0:00:00]} 11. Qc2 {[%emt 0:01:27]} e6 {[%emt 0:00:00]} 12. Be3 {[%emt 0:02:34]} Rh4 {[%emt 0:00:00]} 13. c5 {[%emt 0:16:03]} c6 {[%emt 0:00:00]} 14. Nd2 {[%emt 0:01:50]} Be7 {[%emt 0:00:00]} 15. Nf3 {[%emt 0:02:03]} Rxh3 {[%emt 0:00:00]} 16. gxh3 {[%emt 0:00:45]} Qxf3 {[%emt 0:00:00]} 17. Qa4 {[%emt 0:03:12]} Qxh3 {[%emt 0:00:00]} 18. Qxa7 {[%emt 0:01:33]} Ng4 {[%emt 0:00:00]} 19. Qa8+ {[%emt 0:02:58]} Kc7 {[%emt 0:00:00]} 20. Qa5+ {[%emt 0:02:04]} Kb8 {[%emt 0:00:00]} 21. Bf4+ {[%emt 0:00:30]} e5 {[%emt 0:00:00]} 22. Qb4 {[%emt 0:04:26]} Rd8 {[%emt 0:00:00]} 23. Rad1 {[%emt 0:01:43]} Rxd1 {[%emt 0:00:00]} 24. Rxd1 {[%emt 0:00:08]} Qf3 {[%emt 0:00:00]} 25. Bxe5+ {[%emt 0:02:04]} Nxe5 {[%emt 0:00:00]} 26. Rd4 {[%emt 0:03:24]} Qh3 {[%emt 0:00:00]} 27. Rf4 {[%emt 0:01:24]} Nf3+ {[%emt 0:00:10]} 28. Rxf3 {[%emt 0:00:06]} Qxf3 {[%emt 0:00:07]} 29. a4 {[%emt 0:00:28]} h5 {[%emt 0:01:10]} 30. a5 {[%emt 0:01:22]} Qg4+ {[%emt 0:00:05]} 31. Qxg4 {[%emt 0:00:06]} hxg4 {[%emt 0:00:05]} 0-1

[Event "2nd Namma Bengaluru Open-B 2025"]
[Site "Bengaluru"]
[Date "2025.04.10"]
[Round "2.3"]
[White "Chakravarti, K.."]
[Black "Mudaliar Nandini"]
[Result "1/2-1/2"]
[Annotator "NA"]
[ECO "D03"]
[WhiteElo "1930"]
[BlackElo "1682"]
[PlyCount "75"]
[EventDate "2025.04.10"]
[EventType "swiss"]
[EventCountry "IND"]
[SourceTitle "playchess.com"]
[Source "ChessBase"]
[SourceQuality "1"]
[TimeControl "3600+30"]

1. d4 {[%emt 0:00:07]} Nf6 {[%emt 0:00:22]} 2. Nf3 {[%emt 0:00:06]} e6 {[%emt 0:00:15]} 3. Bg5 {[%emt 0:00:12]} d5 {[%emt 0:00:32]} 4. Nbd2 {[%emt 0:00:06]} Be7 {[%emt 0:00:08]} 5. e3 {[%emt 0:00:07]} h6 {[%emt 0:00:17]} 6. Bh4 {[%emt 0:02:23]} c5 {[%emt 0:00:23]} 7. c3 {[%emt 0:00:10]} Nbd7 {[%emt 0:00:36]} 8. Bd3 {[%emt 0:00:11]} a6 {[%emt 0:00:55]} 9. O-O {[%emt 0:01:12]} b5 {[%emt 0:01:41]} 10. Ne5 {[%emt 0:00:56]} Nxe5 {[%emt 0:02:00]} 11. dxe5 {[%emt 0:00:07]} Nd7 {[%emt 0:00:15]} 12. Bxe7 {[%emt 0:00:31]} Qxe7 {[%emt 0:00:06]} 13. f4 {[%emt 0:00:13]} O-O {[%emt 0:04:40]} 14. Qh5 {[%emt 0:03:13]} f5 {[%emt 0:02:13]} 15. exf6 {[%emt 0:00:21]} Nxf6 {[%emt 0:01:24]} 16. Qh4 {[%emt 0:02:36]} e5 {[%emt 0:01:41]} 17. e4 {[%emt 0:05:14]} exf4 {[%emt 0:03:52]} 18. Rae1 {[%emt 0:01:43]} c4 {[%emt 0:00:42]} 19. Bb1 {[%emt 0:02:45]} Qa7+ {[%emt 0:03:58]} 20. Kh1 {[%emt 0:00:12]} dxe4 {[%emt 0:01:31]} 21. Nxe4 {[%emt 0:01:43]} Nxe4 {[%emt 0:00:52]} 22. Bxe4 {[%emt 0:00:03]} Bb7 {[%emt 0:00:36]} 23. Rxf4 {[%emt 0:13:36]} Rxf4 {[%emt 0:01:04]} 24. Qxf4 {[%emt 0:00:28]} Bxe4 {[%emt 0:01:26]} 25. Qxe4 {[%emt 0:00:17]} Rf8 {[%emt 0:00:29]} 26. h3 {[%emt 0:01:18]} Qf2 {[%emt 0:01:20]} 27. Qe2 {[%emt 0:05:39]} Qg3 {[%emt 0:02:34]} 28. Rf1 {[%emt 0:03:48]} Rxf1+ {[%emt 0:00:18]} 29. Qxf1 {[%emt 0:00:04]} Qd3 {[%emt 0:01:01]} 30. Qe1 {[%emt 0:04:39]} Kh7 {[%emt 0:00:08]} 31. a3 {[%emt 0:01:05]} a5 {[%emt 0:00:25]} 32. Qe5 {[%emt 0:01:18]} Qb1+ {[%emt 0:01:32]} 33. Kh2 {[%emt 0:00:02]} Qxb2 {[%emt 0:00:11]} 34. Qf5+ {[%emt 0:00:03]} Kg8 {[%emt 0:00:21]} 35. Qe6+ {[%emt 0:01:05]} Kh7 {[%emt 0:00:10]} 36. Qf5+ {[%emt 0:00:06]} Kg8 {[%emt 0:00:14]} 37. Qe6+ {[%emt 0:00:06]} Kh7 {[%emt 0:00:41]} 38. Qf5+ {[%emt 0:00:02]} 1/2-1/2

[Event "2nd Namma Bengaluru Open-B 2025"]
[Site "Bengaluru"]
[Date "2025.04.10"]
[Round "2.4"]
[White "Aarav Laddha"]
[Black "Anurag, Jaiswal"]
[Result "0-1"]
[Annotator "NA"]
[ECO "B01"]
[WhiteElo "1680"]
[BlackElo "1923"]
[PlyCount "78"]
[EventDate "2025.04.10"]
[EventType "swiss"]
[EventCountry "IND"]
[SourceTitle "playchess.com"]
[Source "ChessBase"]
[SourceQuality "1"]
[TimeControl "3600+30"]

1. e4 {[%emt 0:02:10]} d5 {[%emt 0:00:10]} 2. exd5 {[%emt 0:00:06]} Qxd5 {[%emt 0:00:02]} 3. Nc3 {[%emt 0:00:08]} Qa5 {[%emt 0:00:08]} 4. Nf3 {[%emt 0:00:59]} Nf6 {[%emt 0:00:07]} 5. Be2 {[%emt 0:00:52]} c6 {[%emt 0:00:22]} 6. O-O {[%emt 0:00:11]} Bf5 {[%emt 0:00:14]} 7. d4 {[%emt 0:01:06]} e6 {[%emt 0:00:07]} 8. Ne5 {[%emt 0:02:51]} Nbd7 {[%emt 0:00:31]} 9. f4 {[%emt 0:02:29]} h6 {[%emt 0:01:20]} 10. g4 {[%emt 0:04:29]} Bh7 {[%emt 0:02:47]} 11. g5 {[%emt 0:02:53]} Nxe5 {[%emt 0:02:13]} 12. fxe5 {[%emt 0:04:13]} Nd5 {[%emt 0:00:19]} 13. Bh5 {[%emt 0:06:37]} Bf5 {[%emt 0:00:51]} 14. g6 {[%emt 0:13:12]} O-O-O {[%emt 0:02:58]} 15. Nxd5 {[%emt 0:04:31]} Qxd5 {[%emt 0:02:51]} 16. c3 {[%emt 0:02:03]} fxg6 {[%emt 0:01:26]} 17. Bf3 {[%emt 0:00:26]} Be4 {[%emt 0:01:58]} 18. Qe2 {[%emt 0:01:46]} Bxf3 {[%emt 0:00:29]} 19. Rxf3 {[%emt 0:00:01]} c5 {[%emt 0:03:57]} 20. Be3 {[%emt 0:00:41]} cxd4 {[%emt 0:02:07]} 21. cxd4 {[%emt 0:00:21]} Kb8 {[%emt 0:00:39]} 22. Rc1 {[%emt 0:02:17]} Rd7 {[%emt 0:09:33]} 23. Qc2 {[%emt 0:03:00]} Bb4 {[%emt 0:00:50]} 24. Rg3 {[%emt 0:00:33]} Ba5 {[%emt 0:03:08]} 25. Qxg6 {[%emt 0:02:50]} Bb6 {[%emt 0:00:41]} 26. Rd1 {[%emt 0:01:00]} Rf8 {[%emt 0:02:47]} 27. b3 {[%emt 0:03:05]} Rdf7 {[%emt 0:00:26]} 28. Qg4 {[%emt 0:00:39]} a6 {[%emt 0:01:02]} 29. Rg2 {[%emt 0:01:00]} g5 {[%emt 0:01:58]} 30. Rf2 {[%emt 0:01:08]} Rxf2 {[%emt 0:01:38]} 31. Bxf2 {[%emt 0:00:01]} Ka7 {[%emt 0:03:46]} 32. Rd3 {[%emt 0:01:00]} Rf4 {[%emt 0:00:32]} 33. Qg2 {[%emt 0:02:19]} Qd8 {[%emt 0:03:25]} 34. Rf3 {[%emt 0:02:01]} Bxd4 {[%emt 0:03:05]} 35. Rxf4 {[%emt 0:00:25]} gxf4 {[%emt 0:00:03]} 36. Kf1 {[%emt 0:02:41]} Be3 {[%emt 0:00:45]} 37. Qf3 {[%emt 0:01:40]} Qd3+ {[%emt 0:00:51]} 38. Kg2 {[%emt 0:00:13]} Qd4 {[%emt 0:01:00]} 39. Qxf4 {[%emt 0:00:28]} Qxf4 {[%emt 0:00:41]} 0-1

[Event "2nd Namma Bengaluru Open-B 2025"]
[Site "Bengaluru"]
[Date "2025.04.10"]
[Round "2.5"]
[White "Afreed T Khan"]
[Black "Sragvidha S"]
[Result "1-0"]
[Annotator "NA"]
[ECO "D35"]
[WhiteElo "1921"]
[BlackElo "1681"]
[PlyCount "121"]
[EventDate "2025.04.10"]
[EventType "swiss"]
[EventCountry "IND"]
[SourceTitle "playchess.com"]
[Source "ChessBase"]
[SourceQuality "1"]
[TimeControl "3600+30"]

1. d4 {[%emt 0:04:54]} Nf6 {[%emt 0:00:05]} 2. c4 {[%emt 0:00:06]} e6 {[%emt 0:00:09]} 3. Nc3 {[%emt 0:00:06]} d5 {[%emt 0:00:30]} 4. cxd5 {[%emt 0:00:38]} exd5 {[%emt 0:00:13]} 5. Bg5 {[%emt 0:00:05]} Be7 {[%emt 0:00:41]} 6. e3 {[%emt 0:00:06]} h6 {[%emt 0:00:15]} 7. Bh4 {[%emt 0:00:05]} O-O {[%emt 0:00:14]} 8. Bd3 {[%emt 0:00:05]} c6 {[%emt 0:02:28]} 9. Nge2 {[%emt 0:00:07]} Ne4 {[%emt 0:04:18]} 10. Bxe7 {[%emt 0:00:08]} Nxc3 {[%emt 0:04:51]} 11. bxc3 {[%emt 0:01:48]} Qxe7 {[%emt 0:00:37]} 12. O-O {[%emt 0:00:09]} Nd7 {[%emt 0:01:00]} 13. c4 {[%emt 0:00:14]} Nf6 {[%emt 0:01:54]} 14. Nf4 {[%emt 0:00:30]} Rd8 {[%emt 0:04:18]} 15. Qb3 {[%emt 0:01:28]} Be6 {[%emt 0:02:23]} 16. c5 {[%emt 0:01:58]} Rab8 {[%emt 0:05:31]} 17. Qa4 {[%emt 0:00:53]} a6 {[%emt 0:03:23]} 18. Rab1 {[%emt 0:00:29]} Bc8 {[%emt 0:04:39]} 19. Qc2 {[%emt 0:01:43]} Ra8 {[%emt 0:01:36]} 20. Rb2 {[%emt 0:00:26]} g6 {[%emt 0:05:02]} 21. Rfb1 {[%emt 0:03:29]} Ne8 {[%emt 0:04:02]} 22. Qd1 {[%emt 0:03:33]} Ng7 {[%emt 0:01:55]} 23. Rb6 {[%emt 0:00:56]} Ne6 {[%emt 0:01:42]} 24. Ne2 {[%emt 0:02:28]} Nf8 {[%emt 0:01:15]} 25. Nc3 {[%emt 0:03:07]} Nd7 {[%emt 0:02:38]} 26. R6b2 {[%emt 0:00:09]} Nf8 {[%emt 0:00:43]} 27. a3 {[%emt 0:00:19]} Nd7 {[%emt 0:01:48]} 28. Na4 {[%emt 0:01:00]} Kg7 {[%emt 0:01:45]} 29. Be2 {[%emt 0:00:07]} Kh7 {[%emt 0:03:17]} 30. Bg4 {[%emt 0:00:55]} f5 {[%emt 0:00:13]} 31. Be2 {[%emt 0:00:15]} Rf8 {[%emt 0:00:45]} 32. g3 {[%emt 0:02:25]} Kh8 {[%emt 0:00:46]} 33. Bd3 {[%emt 0:00:07]} Kh7 {[%emt 0:00:38]} 34. Qf3 {[%emt 0:00:51]} Kg7 {[%emt 0:02:10]} 35. Qf4 {[%emt 0:01:39]} Qg5 {[%emt 0:02:22]} 36. Qc7 {[%emt 0:03:03]} Qd8 {[%emt 0:00:32]} 37. Qf4 {[%emt 0:05:12]} Ra7 {[%emt 0:01:14]} 38. h4 {[%emt 0:02:08]} Qe7 {[%emt 0:00:51]} 39. Kg2 {[%emt 0:01:16]} Qd8 {[%emt 0:00:58]} 40. Nc3 {[%emt 0:07:41]} Qe7 {[%emt 0:01:56]} 41. Ne2 {[%emt 0:01:06]} Qd8 {[%emt 0:00:49]} 42. Qf3 {[%emt 0:00:13]} Nf6 {[%emt 0:01:33]} 43. Nf4 {[%emt 0:00:26]} Qe8 {[%emt 0:01:06]} 44. h5 {[%emt 0:02:13]} g5 {[%emt 0:01:39]} 45. Ng6 {[%emt 0:00:44]} Rf7 {[%emt 0:00:16]} 46. Ne5 {[%emt 0:03:25]} Rf8 {[%emt 0:00:07]} 47. Bxf5 {[%emt 0:02:10]} Nxh5 {[%emt 0:00:59]} 48. Bg6 {[%emt 0:00:27]} Rxf3 {[%emt 0:00:45]} 49. Bxe8 {[%emt 0:17:38]} Nf6 {[%emt 0:00:25]} 50. Bg6 {[%emt 0:00:00]} g4 {[%emt 0:00:25]} 51. Bd3 {[%emt 0:00:00]} Bf5 {[%emt 0:00:43]} 52. Rxb7+ {[%emt 0:00:00]} Rxb7 {[%emt 0:00:01]} 53. Rxb7+ {[%emt 0:00:00]} Kg8 {[%emt 0:00:13]} 54. Bxa6 {[%emt 0:00:00]} Be4 {[%emt 0:00:15]} 55. Nxf3 {[%emt 0:00:00]} Bxf3+ {[%emt 0:00:05]} 56. Kg1 {[%emt 0:00:00]} h5 {[%emt 0:00:05]} 57. Rc7 {[%emt 0:00:00]} h4 {[%emt 0:00:06]} 58. gxh4 {[%emt 0:00:00]} Ne4 {[%emt 0:00:03]} 59. Bd3 {[%emt 0:00:00]} g3 {[%emt 0:00:04]} 60. Bxe4 {[%emt 0:00:00]} dxe4 {[%emt 0:05:14]} 61. Rd7 {[%emt 0:00:00]} 1-0

[Event "2nd Namma Bengaluru Open-B 2025"]
[Site "Bengaluru"]
[Date "2025.04.10"]
[Round "2.6"]
[White "Keshav Sivaramakrishnan"]
[Black "Saranya Devi Narahari"]
[Result "0-1"]
[Annotator "NA"]
[ECO "D37"]
[WhiteElo "1680"]
[BlackElo "1888"]
[PlyCount "128"]
[EventDate "2025.04.10"]
[EventType "swiss"]
[EventCountry "IND"]
[SourceTitle "playchess.com"]
[Source "ChessBase"]
[SourceQuality "1"]
[TimeControl "3600+30"]

1. d4 {[%emt 0:00:04]} Nf6 {[%emt 0:00:52]} 2. c4 {[%emt 0:00:07]} e6 {[%emt 0:00:12]} 3. Nf3 {[%emt 0:00:08]} d5 {[%emt 0:00:12]} 4. Nc3 {[%emt 0:00:07]} Be7 {[%emt 0:00:06]} 5. Bf4 {[%emt 0:00:07]} O-O {[%emt 0:00:16]} 6. e3 {[%emt 0:00:05]} Nbd7 {[%emt 0:00:55]} 7. c5 {[%emt 0:00:09]} c6 {[%emt 0:04:16]} 8. Bd3 {[%emt 0:00:06]} Nh5 {[%emt 0:01:19]} 9. b4 {[%emt 0:00:12]} a6 {[%emt 0:01:29]} 10. h4 {[%emt 0:03:06]} Nxf4 {[%emt 0:10:02]} 11. exf4 {[%emt 0:00:20]} f5 {[%emt 0:01:25]} 12. g3 {[%emt 0:00:50]} Nf6 {[%emt 0:03:34]} 13. O-O {[%emt 0:04:48]} Ne4 {[%emt 0:03:24]} 14. Na4 {[%emt 0:11:36]} Bd7 {[%emt 0:04:17]} 15. Nb6 {[%emt 0:00:16]} Rb8 {[%emt 0:00:18]} 16. Nxd7 {[%emt 0:00:25]} Qxd7 {[%emt 0:00:02]} 17. Ne5 {[%emt 0:00:08]} Qe8 {[%emt 0:01:12]} 18. Kg2 {[%emt 0:09:17]} Bd8 {[%emt 0:05:09]} 19. Bxe4 {[%emt 0:04:08]} fxe4 {[%emt 0:00:22]} 20. f3 {[%emt 0:00:33]} exf3+ {[%emt 0:01:12]} 21. Qxf3 {[%emt 0:00:17]} Bf6 {[%emt 0:00:09]} 22. Rae1 {[%emt 0:01:06]} Bxe5 {[%emt 0:04:54]} 23. Rxe5 {[%emt 0:00:12]} Rf6 {[%emt 0:00:21]} 24. Rfe1 {[%emt 0:00:41]} Qf7 {[%emt 0:00:51]} 25. h5 {[%emt 0:00:26]} Re8 {[%emt 0:01:21]} 26. Qg4 {[%emt 0:00:21]} Re7 {[%emt 0:03:35]} 27. f5 {[%emt 0:01:03]} exf5 {[%emt 0:01:58]} 28. Qg5 {[%emt 0:06:08]} Rxe5 {[%emt 0:02:37]} 29. Rxe5 {[%emt 0:01:03]} h6 {[%emt 0:00:20]} 30. Qf4 {[%emt 0:01:13]} Kh7 {[%emt 0:04:00]} 31. a4 {[%emt 0:00:14]} Qxh5 {[%emt 0:04:24]} 32. Re7 {[%emt 0:00:53]} Rf7 {[%emt 0:00:02]} 33. g4 {[%emt 0:00:23]} Qg6 {[%emt 0:01:24]} 34. Rxf7 {[%emt 0:00:04]} Qxf7 {[%emt 0:00:05]} 35. gxf5 {[%emt 0:00:06]} Qe7 {[%emt 0:02:13]} 36. Kf3 {[%emt 0:02:03]} Qe1 {[%emt 0:03:21]} 37. Qc7 {[%emt 0:03:02]} Qxb4 {[%emt 0:01:46]} 38. f6 {[%emt 0:00:10]} Qc3+ {[%emt 0:00:06]} 39. Kg2 {[%emt 0:00:09]} Qd2+ {[%emt 0:00:54]} 40. Kh1 {[%emt 0:01:05]} Qe1+ {[%emt 0:00:57]} 41. Kg2 {[%emt 0:00:55]} Qe4+ {[%emt 0:00:04]} 42. Kf1 {[%emt 0:00:34]} Qf3+ {[%emt 0:00:25]} 43. Kg1 {[%emt 0:00:30]} Qxf6 {[%emt 0:00:05]} 44. Qxb7 {[%emt 0:00:04]} Qxd4+ {[%emt 0:00:10]} 45. Kg2 {[%emt 0:00:03]} Qxa4 {[%emt 0:00:16]} 46. Qc8 {[%emt 0:00:14]} Qe4+ {[%emt 0:00:07]} 47. Kf2 {[%emt 0:00:11]} d4 {[%emt 0:00:27]} 48. Qxa6 {[%emt 0:00:10]} d3 {[%emt 0:00:05]} 49. Qa2 {[%emt 0:00:08]} Qe2+ {[%emt 0:00:12]} 50. Qxe2 {[%emt 0:00:05]} dxe2 {[%emt 0:00:04]} 51. Kxe2 {[%emt 0:00:05]} Kg6 {[%emt 0:00:10]} 52. Kf3 {[%emt 0:00:05]} Kf5 {[%emt 0:00:01]} 53. Kg3 {[%emt 0:00:06]} g5 {[%emt 0:00:01]} 54. Kf3 {[%emt 0:00:06]} g4+ {[%emt 0:00:03]} 55. Kg3 {[%emt 0:00:04]} Kg5 {[%emt 0:00:05]} 56. Kg2 {[%emt 0:00:04]} Kf4 {[%emt 0:00:01]} 57. Kf2 {[%emt 0:00:06]} g3+ {[%emt 0:00:01]} 58. Kg2 {[%emt 0:00:08]} Kg4 {[%emt 0:00:01]} 59. Kg1 {[%emt 0:00:08]} Kf3 {[%emt 0:00:02]} 60. Kf1 {[%emt 0:00:11]} g2+ {[%emt 0:00:03]} 61. Kg1 {[%emt 0:00:39]} h5 {[%emt 0:00:03]} 62. Kh2 {[%emt 0:00:04]} Kf2 {[%emt 0:00:06]} 63. Kh3 {[%emt 0:00:04]} g1=Q {[%emt 0:00:07]} 64. Kh4 {[%emt 0:00:04]} Qg4# {[%emt 0:00:04]} 0-1

[Event "2nd Namma Bengaluru Open-B 2025"]
[Site "Bengaluru"]
[Date "2025.04.10"]
[Round "2.7"]
[White "Kabnurakar Rushikesh"]
[Black "Avyukta Nayyar"]
[Result "1-0"]
[Annotator "NA"]
[ECO "C54"]
[WhiteElo "1884"]
[BlackElo "1680"]
[PlyCount "77"]
[EventDate "2025.04.10"]
[EventType "swiss"]
[EventCountry "IND"]
[SourceTitle "playchess.com"]
[Source "ChessBase"]
[SourceQuality "1"]
[TimeControl "3600+30"]

1. e4 {[%emt 0:00:03]} e5 {[%emt 0:00:22]} 2. Nf3 {[%emt 0:00:07]} Nc6 {[%emt 0:00:09]} 3. Bc4 {[%emt 0:00:08]} Bc5 {[%emt 0:00:09]} 4. c3 {[%emt 0:00:08]} Nf6 {[%emt 0:00:06]} 5. d4 {[%emt 0:00:08]} exd4 {[%emt 0:00:05]} 6. e5 {[%emt 0:00:17]} d5 {[%emt 0:00:03]} 7. Bb5 {[%emt 0:00:11]} Ne4 {[%emt 0:00:08]} 8. cxd4 {[%emt 0:00:08]} Bb6 {[%emt 0:00:04]} 9. Be3 {[%emt 0:00:39]} O-O {[%emt 0:01:14]} 10. Bxc6 {[%emt 0:00:16]} bxc6 {[%emt 0:00:11]} 11. O-O {[%emt 0:00:35]} Ba6 {[%emt 0:00:47]} 12. Re1 {[%emt 0:00:22]} Rb8 {[%emt 0:04:06]} 13. Qc2 {[%emt 0:00:55]} Qd7 {[%emt 0:01:08]} 14. Nbd2 {[%emt 0:03:25]} Nxd2 {[%emt 0:58:58]} 15. Qxd2 {[%emt 0:02:47]} f6 {[%emt 0:00:00]} 16. a4 {[%emt 0:00:11]} fxe5 {[%emt 0:00:00]} 17. Nxe5 {[%emt 0:00:02]} Qe6 {[%emt 0:00:00]} 18. a5 {[%emt 0:00:11]} Bxd4 {[%emt 0:00:00]} 19. Bxd4 {[%emt 0:00:08]} Qd6 {[%emt 0:00:00]} 20. Rac1 {[%emt 0:00:48]} Rfd8 {[%emt 0:00:00]} 21. Nxc6 {[%emt 0:00:50]} Re8 {[%emt 0:00:00]} 22. Nxb8 {[%emt 0:00:05]} Rxb8 {[%emt 0:00:00]} 23. Qg5 {[%emt 0:00:11]} g6 {[%emt 0:00:00]} 24. Qe7 {[%emt 0:01:27]} Qxe7 {[%emt 0:00:00]} 25. Rxe7 {[%emt 0:00:03]} Rb7 {[%emt 0:00:00]} 26. Rcxc7 {[%emt 0:00:03]} Rxc7 {[%emt 0:00:00]} 27. Rxc7 {[%emt 0:00:02]} Bc4 {[%emt 0:00:00]} 28. Rxa7 {[%emt 0:00:02]} Bd3 {[%emt 0:00:00]} 29. a6 {[%emt 0:00:04]} Bxa6 {[%emt 0:00:00]} 30. Rxa6 {[%emt 0:00:02]} Kf7 {[%emt 0:00:00]} 31. b4 {[%emt 0:00:02]} Ke7 {[%emt 0:00:00]} 32. b5 {[%emt 0:00:01]} Kd7 {[%emt 0:00:00]} 33. Ra7+ {[%emt 0:00:10]} Kc8 {[%emt 0:00:00]} 34. b6 {[%emt 0:00:01]} Kb8 {[%emt 0:00:00]} 35. Be5+ {[%emt 0:00:02]} Kc8 {[%emt 0:00:00]} 36. b7+ {[%emt 0:00:03]} Kd7 {[%emt 0:00:00]} 37. b8=Q+ {[%emt 0:00:05]} Ke6 {[%emt 0:00:00]} 38. g4 {[%emt 0:00:00]} d4 {[%emt 0:07:34]} 39. Qd6# {[%emt 0:00:46]} 1-0